Workbook

Sheet Bandits
A1: 2016 BOJANGLES SUMMER SHOOTOUT SERIES - CHAMPIONSHIP STANDINGS
A2: 2016-06-14
A3: (After Round 4 of 10 - June 28, 2016) | H3: Weekly Finishes | S3: Weekly Points
A4: BANDITS | D4: Races | E4: Total | F4: Points | G4: Average | H4: 2016-06-14 | I4: 2016-06-20 | J4: 2016-06-21 | K4: 2016-06-28 | L4: 2016-07-05 | M4: 2016-07-12 | N4: 2016-07-19 | O4: 2016-07-26 | P4: 2016-08-01 | Q4: 2016-08-02 | R4: 2015-07-27 | S4: 2016-06-14 | T4: 2016-06-20 | U4: 2016-06-21 | V4: 2016-06-28 | W4: 2016-07-05 | X4: 2016-07-12 | Y4: 2016-07-19 | Z4: 2016-07-26 | AA4: 2016-08-01 | AB4: 2016-08-02
A5: Pos. | B5: Car # | C5: Driver | D5: Entered | E5: Points | F5: Back | G5: Finish
A6: 1 | B6: 24 | C6: Bryson Ruff | D6: =COUNTA(H6:Q6) -> 4 | E6: =SUM(S6:AB6) -> 142 | F6: =E6-$E$6 -> 0 | G6: =AVERAGEA(H6:Q6) -> 3.75 | H6: 3 | I6: 1 | J6: 9 | K6: 2 | S6: 45 | T6: 51 | V6: 46
A7: =A6+1 -> 2 | B7: 67 | C7: Cameron Bolin | D7: 4 | E7: 140 | F7: -2 | G7: 4.5 | H7: 2 | I7: 3 | J7: 12 | K7: 1 | S7: 45 | T7: 44 | U7: 1 | V7: 50
A8: 3 | B8: 44 | C8: Josh Kossek | D8: 4 | E8: 136 | F8: -6 | G8: 5.25 | H8: 1 | I8: 2 | J8: 8 | K8: 10 | S8: 51 | T8: 46 | U8: 39
A9: 4 | B9: 54 | C9: Josh Speas | D9: 4 | E9: 132 | F9: -10 | G9: 5.5 | H9: 6 | I9: 6 | J9: 1 | K9: 9 | S9: 41 | T9: 41 | U9: 50
A10: 5 | B10: 4 | C10: Leland Honeyman | D10: 4 | E10: 129 | F10: -13 | G10: 5.75 | H10: 4 | I10: 5 | J10: 11 | K10: 3 | S10: 43 | T10: 42 | V10: 44
A11: 6 | B11: 22 | C11: William Robusto | D11: 4 | E11: 128 | F11: -14 | G11: 6 | H11: 5 | I11: 4 | J11: 10 | K11: 5 | S11: 42 | T11: 43 | U11: 1 | V11: 42
A12: 7 | B12: 4H | C12: Holt H4lder | D12: 4 | E12: 121 | F12: -21 | G12: 7.75 | H12: 11 | I12: 10 | J12: 2 | K12: 8 | T12: 37 | U12: 45 | V12: 39
A13: 8 | B13: 14 | C13: Conner Jones | D13: 4 | E13: 120 | F13: -22 | G13: 8 | H13: 8 | I13: 11 | J13: 7 | K13: 6 | S13: 39 | U13: 40 | V13: 41
A14: 9 | B14: 28 | C14: Landon Rapp | D14: 4 | E14: 119 | F14: -23 | G14: 9 | H14: 12 | I14: 7 | J14: 13 | K14: 4 | S14: 35 | T14: 40 | V14: 44
A15: 10 | B15: 19 | C15: Jaiden Reyna | D15: 4 | E15: 119 | F15: -23 | G15: 8 | H15: 10 | I15: 9 | J15: 6 | K15: 7 | T15: 38 | U15: 41 | V15: 40
A16: 11 | B16: 41 | C16: Tyler Chapman | D16: 2 | E16: 84 | F16: -58 | G16: 5 | H16: 7 | J16: 3 | S16: 40 | U16: 44
A17: 12 | B17: 23 | C17: Bryce Bailey | D17: 2 | E17: 82 | F17: -60 | G17: 6 | I17: 8 | J17: 4 | T17: 39 | U17: 43
A18: 13 | B18: 44J | C18: Jason Chapman | D18: 2 | E18: 80 | F18: -62 | G18: 7 | H18: 9 | J18: 5 | S18: 38 | U18: 42
A19: =A18+1 -> 14 | B19: 17 | C19: George Hayes | D19: 1 | E19: 35 | F19: -107 | G19: 12 | I19: 12 | T19: 35
A20: 15 | D20: 0 | E20: 0 | F20: -142
A21: 16 | D21: =COUNTA(H21:Q21) -> 0 | E21: =SUM(S21:AB21) -> 0 | F21: =E21-$E$6 -> -142 | G21: =AVERAGEA(H21:Q21) -> 
A22: 17 | D22: =COUNTA(H22:Q22) -> 0 | E22: =SUM(S22:AB22) -> 0 | F22: =E22-$E$6 -> -142 | G22: =AVERAGEA(H22:Q22) -> 
A23: 18 | D23: 0 | E23: 0 | F23: -142
A24: 19 | D24: 0 | E24: 0 | F24: -142
A25: 20 | D25: 0 | E25: 0 | F25: -142
A26: 21 | D26: 0 | E26: 0 | F26: -142
A27: 22 | D27: =COUNTA(H27:Q27) -> 0 | E27: =SUM(S27:AB27) -> 0 | F27: =E27-$E$6 -> -142 | G27: =AVERAGEA(H27:Q27) -> 
A28: 23 | D28: 0 | E28: 0 | F28: -142
A29: 24
A30: 25
A31: 26
H32: =COUNTA(H6:H31) -> 12 | I32: 12 | J32: 13 | K32: 10 | L32: 0 | M32: 0 | N32: 0 | O32: 0 | P32: 0 | Q32: 0
A33: Total Events | D33: 4
A34: Track Point Races | D34: 4 | S34: HEAT RACE WINNERS IN BOLD ON POINTS
A35: Avg. Entries | D35: =SUM(H32:Q32)/4 -> 11.75

Sheet Outlaws
A1: 2016 BOJANGLES SUMMER SHOOTOUT SERIES - CHAMPIONSHIP STANDINGS
A3: (After Round 4 of 10 - June 28, 2016) | H3: Weekly Finishes | S3: Weekly Points
A4: OUTLAWS | D4: Races | E4: Total | F4: Points | G4: Average | H4: 2016-06-14 | I4: 2016-06-20 | J4: 2016-06-21 | K4: 2016-06-28 | L4: 2016-07-05 | M4: 2016-07-12 | N4: 2016-07-19 | O4: 2016-07-26 | P4: 2016-08-01 | Q4: 2016-08-02 | R4: 00:00:00 | S4: 2016-06-14 | T4: 2016-06-20 | U4: 2016-06-21 | V4: 2016-06-28 | W4: 2016-07-05 | X4: 2016-07-12 | Y4: 2016-07-19 | Z4: 2016-07-26 | AA4: 2016-08-01 | AB4: 2016-08-02
A5: Pos. | B5: Car # | C5: Driver | D5: Entered | E5: Points | F5: Back | G5: Finish
A6: 1 | B6: 29 | C6: D J Canipe | D6: =COUNTA(H6:Q6) -> 4 | E6: =SUM(S6:AB6) -> 149 | F6: =E6-$E$6 -> 0 | G6: =AVERAGEA(H6:Q6) -> 2 | H6: 1 | I6: 2 | J6: 4 | K6: 1 | S6: 51 | T6: 46 | U6: 1 | V6: 51
A7: =A6+1 -> 2 | B7: 19 | C7: Tommy Good | D7: 4 | E7: 140 | F7: -9 | G7: 2.75 | H7: 5 | I7: 3 | J7: 1 | K7: 2 | T7: 44 | U7: 51 | V7: 45
A8: 3 | B8: 10 | C8: Matthew Davey | D8: 4 | E8: 138 | F8: -11 | G8: 2.5 | H8: 3 | I8: 1 | J8: 3 | K8: 3 | T8: 50 | U8: 44 | V8: 44
A9: 4 | B9: 47 | C9: Blaize Maddox | D9: 4 | E9: 127 | F9: -22 | G9: 6.75 | H9: 7 | I9: 13 | J9: 2 | K9: 5 | S9: 40 | U9: 45 | V9: 42
A10: 5 | B10: 11 | C10: Matthew Emery | D10: 4 | E10: 127 | F10: -22 | G10: 6.25 | H10: 4 | I10: 11 | J10: 6 | K10: 4 | S10: 43 | U10: 41 | V10: 43
A11: 6 | B11: 22 | C11: Jordan Plummer | D11: 3 | E11: 119 | F11: -30 | G11: 7.333333333 | I11: 6 | J11: 7 | K11: 9 | T11: 41 | U11: 40 | V11: 38
A12: 7 | B12: 26 | C12: Dylan Notaro | D12: 4 | E12: 119 | F12: -30 | G12: 7.75 | H12: 8 | I12: 8 | J12: 9 | K12: 6 | S12: 39 | T12: 39 | V12: 41
A13: 8 | B13: 6 | C13: Isaak Love | D13: 4 | E13: 118 | F13: -31 | G13: 9.25 | H13: 9 | I13: 7 | J13: 8 | K13: 13 | S13: 38 | T13: 40 | U13: 39 | V13: 1
A14: 9 | B14: 15 | C14: Cameron Johnson | D14: 3 | E14: 114 | F14: -35 | G14: 9 | I14: 10 | J14: 10 | K14: 7 | T14: 37 | U14: 37 | V14: 40
A15: 10 | B15: 32 | C15: Tristan Leslk | D15: 3 | E15: 113 | F15: -36 | G15: 10 | H15: 2 | I15: 14 | K15: 14 | S15: 46 | T15: 34 | V15: 33
A16: 11 | B16: 53 | C16: Justin Gareis | D16: 4 | E16: 113 | F16: -36 | G16: 10.25 | H16: 13 | I16: 9 | J16: 11 | K16: 8 | T16: 38 | U16: 36 | V16: 39
A17: 12 | B17: 9 | C17: Liz Montgomery | D17: 4 | E17: 112 | F17: -37 | G17: 11.75 | H17: 6 | I17: 18 | J17: 12 | K17: 11 | S17: 41 | U17: 35 | V17: 36
A18: 13 | B18: 52 | C18: Jacob Gantz | D18: 3 | E18: 105 | F18: -44 | G18: 12 | H18: 11 | J18: 15 | K18: 10 | S18: 36 | U18: 32 | V18: 37
A19: 14 | B19: 24 | C19: Blaise Brinkley | D19: 3 | E19: 103 | F19: -46 | G19: 12.66666667 | H19: 16 | I19: 4 | J19: 18 | S19: 31 | T19: 43 | U19: 29
A20: 15 | B20: 35 | C20: Hayden Swank | D20: 4 | E20: 103 | F20: -46 | G20: 13.5 | H20: 10 | I20: 15 | J20: 13 | K20: 16 | S20: 37 | T20: 32 | U20: 34
A21: 16 | B21: 08 | C21: Trevor Wester | D21: 4 | E21: 101 | F21: -48 | G21: 15 | H21: 12 | I21: 16 | J21: 20 | K21: 12 | S21: 35 | T21: 31 | V21: 35
A22: 17 | B22: 03 | C22: Ethan Elder | D22: 4 | E22: 98 | F22: -51 | G22: 15.5 | H22: 14 | I22: 19 | J22: 14 | K22: 15 | S22: 33 | U22: 33 | V22: 32
A23: 18 | B23: 14 | C23: Ashley Pantoulas | D23: 3 | E23: 95 | F23: -54 | G23: 15.33333333 | H23: 15 | I23: 12 | J23: 19 | S23: 32 | T23: 35 | U23: 28
A24: 19 | B24: 77 | C24: Jason Alder | D24: 2 | E24: 84 | F24: -65 | G24: 5 | I24: 5 | J24: 5 | T24: 42 | U24: 42
A25: 20 | B25: 88 | C25: Nathan Blackburn | D25: 2 | E25: 61 | F25: -88 | G25: 16.5 | I25: 17 | J25: 16 | T25: 30 | U25: 31
A26: 21 | B26: 71 | C26: Garrett Zacharias | D26: 2 | E26: 57 | F26: -92 | G26: 18.5 | I26: 20 | J26: 17 | T26: 27 | U26: 30
A27: 22 | D27: =COUNTA(H27:Q27) -> 0 | E27: =SUM(S27:AB27) -> 0 | F27: =E27-$E$6 -> -149 | G27: =AVERAGEA(H27:Q27) -> 
A28: 23 | D28: 0 | E28: 0 | F28: -149
A29: 24 | D29: 0 | E29: 0 | F29: -149
A30: 25 | D30: =COUNTA(H30:Q30) -> 0 | E30: =SUM(S30:AB30) -> 0 | F30: =E30-$E$6 -> -149 | G30: =AVERAGEA(H30:Q30) -> 
A31: 26 | D31: 0 | E31: 0 | F31: -149
A32: 27 | D32: 0 | E32: 0 | F32: -149
A33: 28 | D33: 0 | E33: 0 | F33: -149
A34: 29 | D34: 0 | E34: 0 | F34: -149
A35: 30 | D35: 0 | E35: 0 | F35: -149
A36: 31
A37: 32
A38: 33
A39: 34
H40: =COUNTA(H6:H39) -> 16 | I40: 20 | J40: 20 | K40: 16 | L40: 0 | M40: 0 | N40: 0 | O40: 0 | P40: 0 | Q40: 0 | S40: =COUNTA(S6:S39) -> 13 | T40: =COUNTA(T6:T39) -> 16 | U40: 18 | V40: 15 | W40: 0 | X40: 0 | Y40: 0 | Z40: 0 | AA40: 0 | AB40: 0
A41: Total Events | D41: 4
A42: Track Point Races | D42: 4 | X42: HEAT RACE WINNERS IN BOLD ON POINTS
A43: Avg. Entries | D43: =SUM(H40:Q40)/4 -> 18

Sheet Young Lions
A1: 2016 BOJANGLES SUMMER SHOOTOUT SERIES - CHAMPIONSHIP STANDINGS
A3: (After Round 4 of 10 - June 28, 2016) | H3: Weekly Finishes | S3: Weekly Points
A4: K1 SPEED YOUNG LIONS | D4: Races | E4: Total | F4: Points | G4: Average | H4: 2016-06-14 | I4: 2016-06-20 | J4: 2016-06-21 | K4: 2016-06-28 | L4: 2016-07-05 | M4: 2016-07-12 | N4: 2016-07-19 | O4: 2016-07-26 | P4: 2016-08-01 | Q4: 2016-08-02 | R4: 00:00:00 | S4: 2016-06-14 | T4: 2016-06-20 | U4: 2016-06-21 | V4: 2016-06-28 | W4: 2016-07-05 | X4: 2016-07-12 | Y4: 2016-07-19 | Z4: 2016-07-26 | AA4: 2016-08-01 | AB4: 2016-08-02
A5: Pos. | B5: Car # | C5: Driver | D5: Entered | E5: Points | F5: Back | G5: Finish
A6: 1 | B6: 77 | C6: Giovanni Bromante | D6: =COUNTA(H6:Q6) -> 4 | E6: =SUM(S6:AB6) -> 142 | F6: =E6-$E$6 -> 0 | G6: =AVERAGEA(H6:Q6) -> 6.5 | H6: 17 | I6: 1 | J6: 7 | K6: 1 | T6: 50 | U6: 41 | V6: 51
A7: 2 | B7: 51 | C7: Eddie Fatscher | D7: 4 | E7: 141 | F7: -1 | G7: 5.25 | H7: 16 | I7: 2 | J7: 1 | K7: 2 | S7: 1 | T7: 45 | U7: 50 | V7: 45
A8: 3 | B8: 9 | C8: Ashton Higgins | D8: 4 | E8: 134 | F8: -8 | G8: 7 | H8: 1 | I8: 8 | J8: 2 | K8: 17 | S8: 50 | T8: 39 | U8: 45
A9: 4 | B9: 43 | C9: Brody Pope | D9: 4 | E9: 132 | F9: -10 | G9: 3.75 | H9: 2 | I9: 4 | J9: 5 | K9: 4 | S9: 45 | T9: 44 | V9: 43
A10: 5 | B10: 35 | C10: Carson Kvapil | D10: 4 | E10: 130 | F10: -12 | G10: 7.75 | H10: 3 | I10: 7 | J10: 18 | K10: 3 | S10: 44 | T10: 42 | V10: 44
A11: 6 | B11: 14 | C11: Vincent Midas | D11: 4 | E11: 124 | F11: -18 | G11: 7 | H11: 5 | I11: 6 | J11: 11 | K11: 6 | S11: 42 | T11: 41 | V11: 41
A12: 7 | B12: 1 | C12: Garrett Manes | D12: 4 | E12: 123 | F12: -19 | G12: 7.75 | H12: 10 | I12: 12 | J12: 4 | K12: 5 | S12: 38 | U12: 43 | V12: 42
A13: 8 | B13: 22 | C13: Sam Mayer | D13: 4 | E13: 121 | F13: -21 | G13: 10.5 | H13: 4 | I13: 22 | J13: 8 | K13: 8 | S13: 43 | U13: 39 | V13: 39
A14: 9 | B14: 92 | C14: Alex Verhagan | D14: 4 | E14: 115 | F14: -27 | G14: 11 | H14: 18 | I14: 11 | J14: 3 | K14: 12 | T14: 36 | U14: 44 | V14: 35
A15: 10 | B15: 12 | C15: Sammy Smith | D15: 4 | E15: 114 | F15: -28 | G15: 10.25 | H15: 7 | I15: 14 | J15: 9 | K15: 11 | S15: 40 | U15: 38 | V15: 36
A16: 11 | B16: 20RB | C16: Harrison Halder | D16: 4 | E16: 107 | F16: -35 | G16: 13.75 | H16: 6 | I16: 13 | J16: 21 | K16: 15 | S16: 41 | T16: 34 | V16: 32
A17: 12 | B17: 90 | C17: Daniel Wilk | D17: 4 | E17: 105 | F17: -37 | G17: 13 | H17: 14 | I17: 16 | J17: 13 | K17: 9 | S17: 33 | U17: 34 | V17: 38
A18: 13 | B18: 18 | C18: Ryan Heim | D18: 4 | E18: 105 | F18: -37 | G18: 12.75 | H18: 8 | I18: 15 | J18: 14 | K18: 14 | S18: 39 | U18: 33 | V18: 33
A19: 14 | B19: 11 | C19: Gracie Trotter | D19: 4 | E19: 104 | F19: -38 | G19: 14.25 | H19: 19 | I19: 10 | J19: 10 | K19: 18 | T19: 37 | U19: 37 | V19: 30
A20: 15 | B20: 55 | C20: Isabella Rubuston | D20: 4 | E20: 102 | F20: -40 | G20: 14.5 | H20: 9 | I20: 17 | J20: 19 | K20: 13 | S20: 38 | T20: 30 | V20: 34
A21: 16 | B21: 15 | C21: Roy Hayes | D21: 4 | E21: 100 | F21: -42 | G21: 15.25 | H21: 15 | I21: 9 | J21: 17 | K21: 20 | S21: 32 | T21: 38 | U21: 30
A22: 17 | B22: 44 | C22: Seth Henry | D22: 3 | E22: 99 | F22: -43 | G22: 14 | I22: 19 | J22: 16 | K22: 7 | T22: 28 | U22: 31 | V22: 40
A23: 18 | B23: 38 | C23: Hailie Deegan | D23: 4 | E23: 97 | F23: -45 | G23: 16 | H23: 13 | I23: 20 | J23: 15 | K23: 16 | S23: 34 | U23: 32 | V23: 31
A24: 19 | B24: 10M | C24: Alex McCollum | D24: 2 | E24: 72 | F24: -70 | G24: 11.5 | I24: 3 | J24: 20 | T24: 44 | U24: 28
A25: 20 | B25: 1CT | C25: Steven Chapman | D25: 2 | E25: 71 | F25: -71 | G25: 11.5 | H25: 11 | J25: 12 | S25: 36 | U25: 35
A26: 21 | B26: 17 | C26: Jake Johnson | D26: 2 | E26: 70 | F26: -72 | G26: 12 | I26: 18 | J26: 6 | T26: 29 | U26: 41
A27: 22 | B27: 66 | C27: Zack Wells | D27: 2 | E27: 67 | F27: -75 | G27: 13.5 | I27: 5 | J27: 22 | T27: 42 | U27: 25
A28: 23 | B28: 20 | C28: Austin Geer | D28: 2 | E28: 64 | F28: -78 | G28: 15 | H28: 20 | K28: 10 | S28: 27 | V28: 37
A29: 24 | B29: 10 | C29: Jack Fread | D29: 2 | E29: 61 | F29: -81 | G29: 16.5 | H29: 12 | I29: 21 | S29: 35 | T29: 26
A30: 25 | B30: 84 | C30: Kyle Craker | D30: 1 | E30: 28 | F30: -114 | G30: 19 | K30: 19 | V30: 28
A31: 26 | D31: =COUNTA(H31:Q31) -> 0 | E31: =SUM(S31:AB31) -> 0 | F31: =E31-$E$6 -> -142 | G31: =AVERAGEA(H31:Q31) -> 
H32: =COUNTA(H6:H31) -> 20 | I32: 22 | J32: 22 | K32: 20 | L32: 0 | M32: 0 | N32: 0 | O32: 0 | P32: 0 | Q32: 0 | S32: =COUNTA(S6:S31) -> 17 | T32: 16 | U32: 17 | V32: 18 | W32: 0 | X32: 0 | Y32: 0 | Z32: 0 | AA32: 0 | AB32: 0
A33: Total Events | D33: 4
A34: Track Point Races | D34: 4 | X34: HEAT RACE WINNERS IN BOLD ON POINTS
A35: Avg. Entries | D35: =SUM(H32:Q32)/4 -> 21

Sheet Semi-Pro
A1: 2016 BOJANGLES SUMMER SHOOTOUT SERIES - CHAMPIONSHIP STANDINGS
A3: (After Round 4 of 10 - June 28, 2016) | I3: Weekly Finishes | T3: Weekly Points | AE3: Weekly Earnings
A4: AAA CAROLINAS SEMI PRO | D4: Races | E4: Total | F4: Points | G4: Average | H4: Total | I4: 2016-06-14 | J4: 2016-06-20 | K4: 2016-06-21 | L4: 2016-06-28 | M4: 2016-07-05 | N4: 2016-07-12 | O4: 2016-07-19 | P4: 2016-07-26 | Q4: 2016-08-01 | R4: 2016-08-02 | S4: 00:00:00 | T4: 2016-06-14 | U4: 2016-06-20 | V4: 2016-06-21 | W4: 2016-06-28 | X4: 2016-07-05 | Y4: 2016-07-12 | Z4: 2016-07-19 | AA4: 2016-07-26 | AB4: 2016-08-01 | AC4: 2016-08-02 | AE4: 2016-06-14 | AF4: 2016-06-20 | AG4: 2016-06-21 | AH4: 2016-06-28 | AI4: 2016-07-05 | AJ4: 2016-07-12 | AK4: 2016-07-19 | AL4: 2016-07-26 | AM4: 2016-08-01 | AN4: 2016-08-02
A5: Pos. | B5: Car # | C5: Driver | D5: Entered | E5: Points | F5: Back | G5: Finish | H5: Earnings
A6: 1 | B6: 52 | C6: Jordan Stillwell | D6: =COUNTA(I6:R6) -> 4 | E6: =SUM(T6:AD6) -> 139 | F6: =E6-$E$6 -> 0 | G6: =AVERAGEA(I6:R6) -> 2.25 | H6: =SUM(AE6:AN6) -> 400 | I6: 2 | J6: 3 | K6: 1 | L6: 3 | T6: 45 | V6: 50 | W6: 44 | AE6: 100 | AF6: 75 | AG6: 150 | AH6: 75
A7: =A6+1 -> 2 | B7: 56 | C7: Gus Dean | D7: 4 | E7: 136 | F7: -3 | G7: 8.5 | H7: 270 | I7: 25 | J7: 1 | K7: 4 | L7: 4 | U7: 50 | V7: 43 | W7: 43 | AF7: 150 | AG7: 60 | AH7: 60
A8: 3 | B8: 2 | C8: Grant Winchester | D8: 4 | E8: 129 | F8: -10 | G8: 7.5 | H8: 210 | I8: 6 | J8: 4 | K8: 2 | L8: 18 | T8: 41 | U8: 43 | V8: 45 | AE8: 40 | AF8: 60 | AG8: 100 | AH8: 10
A9: 4 | B9: 69 | C9: Tyler Truex | D9: 4 | E9: 124 | F9: -15 | G9: 9.75 | H9: 215 | I9: 14 | J9: 2 | K9: 21 | L9: 2 | T9: 33 | U9: 45 | V9: 1 | W9: 45 | AE9: 15 | AF9: 100 | AH9: 100
A10: 5 | B10: 7 | C10: Austin Langenstein | D10: 3 | E10: 123 | F10: -16 | G10: 6 | H10: 120 | I10: 5 | K10: 7 | L10: 6 | T10: 42 | V10: 40 | W10: 41 | AE10: 50 | AG10: 30 | AH10: 40
A11: 6 | B11: 00 | C11: Craig Biryla | D11: 4 | E11: 123 | F11: -16 | G11: 6.5 | H11: 145 | I11: 7 | J11: 6 | K11: 5 | L11: 8 | T11: 40 | U11: 41 | V11: 42 | AE11: 30 | AF11: 40 | AG11: 50 | AH11: 25
A12: 7 | B12: 88 | C12: Dustin Rumley | D12: 3 | E12: 121 | F12: -18 | G12: 6.666666667 | H12: 110 | I12: 4 | J12: 7 | K12: 9 | T12: 43 | U12: 40 | V12: 38 | AE12: 60 | AF12: 30 | AG12: 20
A13: 8 | B13: 17 | C13: Scott Joy | D13: 4 | E13: 121 | F13: -18 | G13: 7.5 | H13: 130 | I13: 10 | J13: 5 | K13: 6 | L13: 9 | U13: 42 | V13: 41 | W13: 38 | AE13: 20 | AF13: 50 | AG13: 40 | AH13: 20
A14: 9 | B14: 95 | C14: Jacob Heafner | D14: 4 | E14: 120 | F14: -19 | G14: 11.25 | H14: 200 | I14: 1 | J14: 17 | K14: 20 | L14: 7 | T14: 50 | U14: 30 | W14: 40 | AE14: 150 | AF14: 10 | AG14: 10 | AH14: 30
A15: 10 | B15: 24 | C15: Matt Mead | D15: 4 | E15: 120 | F15: -19 | G15: 12.5 | H15: 185 | I15: 23 | J15: 8 | K15: 18 | L15: 1 | T15: 1 | U15: 39 | V15: 29 | W15: 51 | AF15: 25 | AG15: 10 | AH15: 150
A16: 11 | B16: 34 | C16: Nolan Pope | D16: 4 | E16: 110 | F16: -29 | G16: 13.25 | H16: 80 | I16: 22 | J16: 9 | K16: 17 | L16: 5 | U16: 38 | V16: 30 | W16: 42 | AF16: 20 | AG16: 10 | AH16: 50
A17: 12 | B17: 19 | C17: Willie Ridenhour | D17: 4 | E17: 110 | F17: -29 | G17: 13.5 | H17: 60 | I17: 8 | J17: 10 | K17: 23 | L17: 13 | T17: 39 | U17: 37 | W17: 34 | AE17: 25 | AF17: 20 | AH17: 15
A18: 13 | B18: 9 | C18: Austin Halder | D18: 4 | E18: 109 | F18: -30 | G18: 11.5 | H18: 65 | I18: 11 | J18: 14 | K18: 10 | L18: 11 | T18: 36 | V18: 37 | W18: 36 | AE18: 15 | AF18: 15 | AG18: 20 | AH18: 15
A19: 14 | B19: 3 | C19: Holden German | D19: 4 | E19: 98 | F19: -41 | G19: 15.5 | H19: 50 | I19: 15 | J19: 19 | K19: 11 | L19: 17 | T19: 32 | V19: 36 | W19: 30 | AE19: 15 | AF19: 10 | AG19: 15 | AH19: 10
A20: 15 | B20: 6 | C20: Steven Brewer Jr | D20: 3 | E20: 96 | F20: -43 | G20: 15 | H20: 30 | I20: 12 | J20: 21 | K20: 12 | T20: 35 | U20: 26 | V20: 35 | AE20: 15 | AG20: 15
A21: 16 | B21: 12 | C21: Jessica Dana | D21: 4 | E21: 96 | F21: -43 | G21: 16.25 | H21: 50 | I21: 17 | J21: 13 | K21: 15 | L21: 20 | T21: 30 | U21: 34 | V21: 32 | AE21: 10 | AF21: 15 | AG21: 15 | AH21: 10
A22: 17 | B22: 16 | C22: Josh Plummer | D22: 3 | E22: 95 | F22: -44 | G22: 15.33333333 | H22: 40 | J22: 20 | K22: 14 | L22: 12 | U22: 27 | V22: 33 | W22: 35 | AF22: 10 | AG22: 15 | AH22: 15
A23: 18 | B23: 14 | C23: Ryo Ogata | D23: 4 | E23: 94 | F23: -45 | G23: 17.25 | H23: 30 | I23: 13 | J23: 22 | K23: 13 | L23: 21 | T23: 34 | V23: 34 | W23: 26 | AE23: 15 | AG23: 15
A24: 19 | B24: 49 | C24: Carson Poindexter | D24: 3 | E24: 93 | F24: -46 | G24: 16 | H24: 35 | I24: 20 | J24: 12 | K24: 16 | T24: 27 | U24: 35 | V24: 31 | AE24: 10 | AF24: 15 | AG24: 10
A25: 20 | B25: 18 | C25: Matt Moermond | D25: 4 | E25: 87 | F25: -52 | G25: 18.25 | H25: 40 | I25: 19 | J25: 16 | K25: 19 | L25: 19 | U25: 31 | V25: 28 | W25: 28 | AE25: 10 | AF25: 10 | AG25: 10 | AH25: 10
A26: 21 | B26: 32 | C26: Jordan Mander | D26: 3 | E26: 81 | F26: -58 | G26: 20 | H26: 20 | I26: 18 | J26: 18 | K26: 24 | T26: 29 | U26: 29 | V26: 23 | AE26: 10 | AF26: 10
A27: 22 | B27: 40 | C27: Garrett Biggers | D27: 3 | E27: 80 | F27: -59 | G27: 20.33333333 | H27: 10 | I27: 16 | J27: 23 | L27: 22 | T27: 31 | U27: 24 | W27: 25 | AE27: 10
A28: 23 | B28: 11 | C28: Brad Lowmaster | D28: 2 | E28: 76 | F28: -63 | G28: 9 | H28: 90 | J28: 15 | K28: 3 | U28: 32 | V28: 44 | AF28: 15 | AG28: 75
A29: 24 | B29: 22 | C29: Brandon Lemke | D29: 2 | E29: 75 | F29: -64 | G29: 9.5 | H29: 40 | J29: 11 | K29: 8 | U29: 36 | V29: 39 | AF29: 15 | AG29: 25
A30: 25 | B30: 10 | C30: Jack Fread | D30: 2 | E30: 62 | F30: -77 | G30: 16 | H30: 20 | K30: 22 | L30: 10 | V30: 25 | W30: 37 | AH30: 20
A31: 26 | B31: 4 | C31: John Holleman | D31: 2 | E31: 44 | F31: -95 | G31: 13.5 | H31: 75 | I31: 3 | J31: 24 | T31: 44 | U31: 0 | AE31: 75
A32: 27 | B32: 87 | C32: Zach Miller | D32: 1 | E32: 38 | F32: -101 | G32: 9 | H32: 20 | I32: 9 | T32: 38 | AE32: 20
A33: 28 | B33: 25 | C33: Christopher Clanton | D33: 1 | E33: 33 | F33: -106 | G33: 14 | H33: 15 | L33: 14 | W33: 33 | AH33: 15
A34: =A33+1 -> 29 | B34: 33N | C34: Robert Norfleet | D34: 1 | E34: 32 | F34: -107 | G34: 15 | H34: 15 | L34: 15 | W34: 32 | AH34: 15
A35: 30 | B35: 97 | C35: Nate Tretow | D35: 1 | E35: 31 | F35: -108 | G35: 16 | H35: 10 | L35: 16 | W35: 31 | AH35: 10
A36: 31 | B36: 33 | C36: Brian Obiedzenski | D36: 1 | E36: 26 | F36: -113 | G36: 21 | H36: 0 | I36: 21 | T36: 26
A37: 32 | B37: 7M | C37: Ryan Miller | D37: 1 | E37: 23 | F37: -116 | G37: 24 | H37: 0 | I37: 24 | T37: 23
I38: =COUNTA(I6:I37) -> 25 | J38: 24 | K38: 24 | L38: 22 | M38: 0 | N38: 0 | O38: 0 | P38: 0 | Q38: 0 | R38: 0 | T38: =COUNTA(T6:T37) -> 21 | U38: =COUNTA(U7:U37) -> 20 | V38: =COUNTA(V6:V37) -> 22 | W38: 19 | X38: 0 | Y38: 0 | Z38: 0 | AA38: 0 | AB38: 0 | AC38: 0 | AE38: =SUM(AE6:AE37) -> 695 | AF38: 695 | AG38: 695 | AH38: 695 | AI38: 0 | AJ38: 0 | AK38: 0 | AL38: 0 | AM38: 0 | AN38: 0
A39: Total Events | D39: 4
A40: Track Point Races | D40: 4 | X40: POLE WINNER POINTS IN BOLD
A41: Total Purse Payout | D41: =SUM(AE38:AN38) -> 2780
A42: Avg. Entries | D42: =SUM(I38:Q38)/4 -> 23.75

Sheet Masters
A1: 2016 BOJANGLES SUMMER SHOOTOUT SERIES - CHAMPIONSHIP STANDINGS
A3: (After Round 4 of 10 - June 28, 2016)
A4: MASTERS | I4: Weekly Finishes | T4: Weekly Points | AE4: Weekly Earnings
D5: Races | E5: Total | F5: Points | G5: Average | H5: Total | I5: 2016-06-14 | J5: 2016-06-20 | K5: 2016-06-21 | L5: 2016-06-28 | M5: 2016-07-05 | N5: 2016-07-12 | O5: 2016-07-19 | P5: 2016-07-26 | Q5: 2016-08-01 | R5: 2016-08-02 | S5: 00:00:00 | T5: 2016-06-14 | U5: 2016-06-20 | V5: 2016-06-21 | W5: 2016-06-28 | X5: 2016-07-05 | Y5: 2016-07-12 | Z5: 2016-07-19 | AA5: 2016-07-26 | AB5: 2016-08-01 | AC5: 2016-08-02 | AE5: 2016-06-14 | AF5: 2016-06-20 | AG5: 2016-06-21 | AH5: 2016-06-28 | AI5: 2016-07-05 | AJ5: 2016-07-12 | AK5: 2016-07-19 | AL5: 2016-07-26 | AM5: 2016-08-01 | AN5: 2016-08-02
A6: Pos. | B6: Car # | C6: Driver | D6: Entered | E6: Points | F6: Back | G6: Finish | H6: Earnings
A7: 1 | B7: 12 | C7: Robby Faggart | D7: =COUNTA(I7:R7) -> 4 | E7: =SUM(T7:AD7) -> 147 | F7: =E7-$E$7 -> 0 | G7: =AVERAGEA(I7:R7) -> 2.5 | H7: =SUM(AE7:AN7) -> 620 | I7: 1 | J7: 2 | K7: 6 | L7: 1 | T7: 51 | U7: 45 | V7: 1 | W7: 50 | AE7: 225 | AF7: 120 | AG7: 50 | AH7: 225
A8: 2 | B8: 09 | C8: Scott Whitaker | D8: 4 | E8: 137 | F8: -10 | G8: 3.75 | H8: 415 | I8: 3 | J8: 4 | K8: 1 | L8: 7 | T8: 44 | U8: 43 | V8: 50 | AE8: 80 | AF8: 70 | AG8: 225 | AH8: 40
A9: 4 | B9: 58 | C9: Carl Cormier | D9: 4 | E9: 134 | F9: -13 | G9: 2.5 | H9: 400 | I9: 2 | J9: 3 | K9: 2 | L9: 3 | T9: 45 | V9: 45 | W9: 44 | AE9: 120 | AF9: 80 | AG9: 120 | AH9: 80
A10: 3 | B10: 50 | C10: Todd Midas | D10: 4 | E10: 133 | F10: -14 | G10: 6.75 | H10: 350 | I10: 6 | J10: 1 | K10: 15 | L10: 5 | T10: 41 | U10: 50 | W10: 42 | AE10: 50 | AF10: 225 | AG10: 15 | AH10: 60
A11: 5 | B11: 00 | C11: Chip Ferguson | D11: 4 | E11: 127 | F11: -20 | G11: 5.5 | H11: 220 | I11: 7 | J11: 8 | K11: 3 | L11: 4 | T11: 40 | V11: 44 | W11: 43 | AE11: 40 | AF11: 30 | AG11: 80 | AH11: 70
A12: 6 | B12: 53 | C12: Bruce Silver | D12: 4 | E12: 127 | F12: -20 | G12: 5.5 | H12: 220 | I12: 4 | J12: 7 | K12: 5 | L12: 6 | T12: 43 | V12: 42 | W12: 42 | AE12: 70 | AF12: 40 | AG12: 60 | AH12: 50
A13: 7 | B13: 7 | C13: Jan Ingram | D13: 4 | E13: 122 | F13: -25 | G13: 8.75 | H13: 155 | I13: 5 | J13: 5 | K13: 16 | L13: 9 | T13: 42 | U13: 42 | W13: 38 | AE13: 60 | AF13: 60 | AG13: 10 | AH13: 25
A14: 8 | B14: 20 | C14: Mark Green | D14: 3 | E14: 116 | F14: -31 | G14: 8.666666667 | H14: 160 | I14: 8 | J14: 16 | L14: 2 | T14: 39 | U14: 32 | W14: 45 | AE14: 30 | AF14: 10 | AH14: 120
A15: 9 | B15: 10 | C15: Jeff Lefcourt | D15: 3 | E15: 115 | F15: -32 | G15: 8.666666667 | H15: 80 | I15: 10 | K15: 8 | L15: 8 | T15: 37 | V15: 39 | W15: 39 | AE15: 20 | AG15: 30 | AH15: 30
A16: 10 | B16: 11 | C16: Dan Keaton | D16: 3 | E16: 114 | F16: -33 | G16: 9 | H16: 80 | I16: 11 | J16: 9 | K16: 7 | T16: 36 | U16: 38 | V16: 40 | AE16: 15 | AF16: 25 | AG16: 40
A17: 11 | B17: 27 | C17: Tom Sherman | D17: 3 | E17: 113 | F17: -34 | G17: 9.333333333 | H17: 90 | I17: 9 | J17: 6 | K17: 13 | T17: 38 | U17: 41 | V17: 34 | AE17: 25 | AF17: 50 | AG17: 15
A18: 12 | B18: 2 | C18: Timothy Sipes | D18: 4 | E18: 108 | F18: -39 | G18: 11.25 | H18: 65 | I18: 12 | J18: 12 | K18: 11 | L18: 10 | T18: 35 | V18: 36 | W18: 37 | AE18: 15 | AF18: 15 | AG18: 15 | AH18: 20
A19: 13 | B19: 76 | C19: Jamie Smith | D19: 3 | E19: 106 | F19: -41 | G19: 11.66666667 | H19: 50 | J19: 14 | K19: 10 | L19: 11 | U19: 33 | V19: 37 | W19: 36 | AF19: 15 | AG19: 20 | AH19: 15
A20: 14 | B20: 15 | C20: Danny Cisson | D20: 2 | E20: 80 | F20: -67 | G20: 7 | H20: 90 | J20: 10 | K20: 4 | U20: 37 | V20: 43 | AF20: 20 | AG20: 70
A21: 15 | B21: 36 | C21: Craig Bruce | D21: 2 | E21: 74 | F21: -73 | G21: 10 | H21: 40 | J21: 11 | K21: 9 | U21: 36 | V21: 38 | AF21: 15 | AG21: 25
A22: 16 | B22: 28 | C22: Chares Parker | D22: 2 | E22: 69 | F22: -78 | G22: 12.5 | H22: 30 | J22: 13 | K22: 12 | U22: 34 | V22: 35 | AF22: 15 | AG22: 15
A23: 17 | B23: 2D | C23: David Green | D23: 2 | E23: 68 | F23: -79 | G23: 13 | H23: 30 | K23: 14 | L23: 12 | V23: 33 | W23: 35 | AG23: 15 | AH23: 15
A24: 18 | B24: 1C | C24: Jon Craig | D24: 1 | E24: 34 | F24: -113 | G24: 13 | H24: 15 | I24: 13 | T24: 34 | AE24: 15
A25: 19 | B25: 46 | C25: Rick Fleming | D25: 1 | E25: 32 | F25: -115 | G25: 15 | H25: 15 | J25: 15 | U25: 32 | AF25: 15
A26: 20 | D26: 0 | E26: 0 | F26: -147 | H26: 0
A27: 21 | D27: 0 | E27: 0 | F27: -147 | H27: 0
A28: 22 | D28: =COUNTA(I28:R28) -> 0 | E28: =SUM(T28:AD28) -> 0 | F28: =E28-$E$7 -> -147 | G28: =AVERAGEA(I28:R28) ->  | H28: =SUM(AE28:AN28) -> 0
A29: 23 | D29: 0 | E29: 0 | F29: -147 | H29: 0
A30: 24
A31: 25
A32: 26
A33: 27
A34: 28
A35: 29
A36: 30
I37: =COUNTA(I7:I36) -> 13 | J37: =COUNTA(J7:J36) -> 16 | K37: =COUNTA(K7:K36) -> 16 | L37: =+COUNTA(L7:L36) -> 12 | M37: =COUNTA(M7:M36) -> 0 | N37: 0 | O37: 0 | P37: 0 | Q37: 0 | R37: 0 | T37: =COUNTA(T7:T36) -> 13 | U37: 12 | V37: =COUNTA(V7:V36) -> 14 | W37: 11 | X37: 0 | Y37: 0 | Z37: 0 | AA37: 0 | AB37: 0 | AC37: 0 | AE37: =SUM(AE7:AE36) -> 765 | AF37: 805 | AG37: 805 | AH37: 750 | AI37: 0 | AJ37: 0 | AK37: 0 | AL37: 0 | AM37: 0 | AN37: 0
A38: Total Events | D38: 4
A39: Track Point Races | D39: 4 | X39: POLE WINNER POINTS IN BOLD
A40: Total Purse Payout | D40: =SUM(AE37:AN37) -> 3125
A41: Avg. Entries | D41: =SUM(I37:R37)/4 -> 14.25

Sheet Pro
A1: 2016 BOJANGLES SUMMER SHOOTOUT SERIES - CHAMPIONSHIP STANDINGS
A3: (After Round 4 of 10 - June 28, 2016)
A4: IN LIGHT WELLNESS PROS | I4: Weekly Finishes | T4: Weekly Points | AE4: Weekly Earnings
D5: Races | E5: Total | F5: Points | G5: Average | H5: Total | I5: 2016-06-14 | J5: 2016-06-20 | K5: 2016-06-21 | L5: 2016-06-28 | M5: 2016-07-05 | N5: 2016-07-12 | O5: 2016-07-19 | P5: 2016-07-26 | Q5: 2016-08-01 | R5: 2016-08-02 | S5: 00:00:00 | T5: 2016-06-14 | U5: 2016-06-20 | V5: 2016-06-21 | W5: 2016-06-28 | X5: 2016-07-05 | Y5: 2016-07-12 | Z5: 2016-07-19 | AA5: 2016-07-26 | AB5: 2016-08-01 | AC5: 2016-08-02 | AE5: 2016-06-14 | AF5: 2016-06-20 | AG5: 2016-06-21 | AH5: 2016-06-28 | AI5: 2016-07-05 | AJ5: 2016-07-12 | AK5: 2016-07-19 | AL5: 2016-07-26 | AM5: 2016-08-01 | AN5: 2016-08-02
A6: Pos. | B6: Car # | C6: Driver | D6: Entered | E6: Points | F6: Back | G6: Finish | H6: Earnings
A7: 1 | B7: 8 | C7: Chase Purdy | D7: =COUNTA(I7:R7) -> 4 | E7: =SUM(T7:AD7) -> 144 | F7: =E7-$E$7 -> 0 | G7: =AVERAGEA(I7:R7) -> 2.5 | H7: =SUM(AE7:AN7) -> 650 | I7: 1 | J7: 4 | K7: 4 | L7: 1 | T7: 50 | V7: 44 | W7: 50 | AE7: 250 | AF7: 75 | AG7: 75 | AH7: 250
A8: =A7+1 -> 2 | B8: 14 | C8: Jordan Black | D8: 4 | E8: 138 | F8: -6 | G8: 3.25 | H8: 510 | I8: 2 | J8: 6 | K8: 1 | L8: 4 | T8: 45 | V8: 50 | W8: 43 | AE8: 125 | AF8: 60 | AG8: 250 | AH8: 75
A9: 3 | B9: 48 | C9: Austin Green | D9: 4 | E9: 137 | F9: -7 | G9: 5 | H9: 460 | I9: 5 | J9: 1 | K9: 12 | L9: 2 | T9: 42 | U9: 50 | W9: 45 | AE9: 65 | AF9: 250 | AG9: 20 | AH9: 125
A10: 4 | B10: 91 | C10: Stevie Johns | D10: 4 | E10: 134 | F10: -10 | G10: 3.5 | H10: 400 | I10: 7 | J10: 2 | K10: 2 | L10: 3 | U10: 45 | V10: 45 | W10: 44 | AE10: 50 | AF10: 125 | AG10: 125 | AH10: 100
A11: 5 | B11: 15 | C11: Michael Torres | D11: 4 | E11: 129 | F11: -15 | G11: 5.5 | H11: 295 | I11: 6 | J11: 3 | K11: 3 | L11: 10 | T11: 41 | U11: 44 | V11: 44 | AE11: 60 | AF11: 100 | AG11: 100 | AH11: 35
A12: 6 | B12: 116 | C12: Alex Pacheco | D12: 4 | E12: 128 | F12: -16 | G12: 4.75 | H12: 290 | I12: 3 | J12: 5 | K12: 5 | L12: 6 | T12: 44 | U12: 42 | V12: 42 | AE12: 100 | AF12: 65 | AG12: 65 | AH12: 60
A13: 7 | B13: 3 | C13: Michael Womack | D13: 4 | E13: 127 | F13: -17 | G13: 5.5 | H13: 250 | I13: 4 | J13: 7 | K13: 6 | L13: 5 | T13: 43 | U13: 1 | V13: 41 | W13: 42 | AE13: 75 | AF13: 50 | AG13: 60 | AH13: 65
A14: 8 | B14: 11 | C14: Dawson Cram | D14: 4 | E14: 118 | F14: -26 | G14: 8 | H14: 180 | I14: 9 | J14: 8 | K14: 8 | L14: 7 | U14: 39 | V14: 39 | W14: 40 | AE14: 40 | AF14: 45 | AG14: 45 | AH14: 50
A15: 9 | B15: 12 | C15: Dillon Faggart | D15: 4 | E15: 112 | F15: -32 | G15: 10.25 | H15: 135 | I15: 8 | J15: 11 | K15: 11 | L15: 11 | T15: 40 | V15: 36 | W15: 36 | AE15: 45 | AF15: 30 | AG15: 30 | AH15: 30
A16: 10 | B16: 44 | C16: Dusty Summers | D16: 3 | E16: 111 | F16: -33 | G16: 10 | H16: 105 | I16: 11 | J16: 9 | K16: 10 | T16: 36 | U16: 38 | V16: 37 | AE16: 30 | AF16: 40 | AG16: 35
A17: 11 | B17: 4 | C17: John Holleman | D17: 2 | E17: 79 | F17: -65 | G17: 7.5 | H17: 95 | K17: 7 | L17: 8 | V17: 40 | W17: 39 | AG17: 50 | AH17: 45
A18: 12 | B18: 3A | C18: Andrew Brown | D18: 2 | E18: 75 | F18: -69 | G18: 9.5 | H18: 75 | J18: 10 | K18: 9 | U18: 37 | V18: 38 | AF18: 35 | AG18: 40
A19: 13 | B19: 2 | C19: Matthew Barnard | D19: 1 | E19: 38 | F19: -106 | G19: 9 | H19: 40 | L19: 9 | W19: 38 | AH19: 40
A20: 14 | B20: 54 | C20: Gregory Lang | D20: 1 | E20: 37 | F20: -107 | G20: 10 | H20: 35 | I20: 10 | T20: 37 | AE20: 35
A21: 15 | B21: 51 | C21: Carson Ferguson | D21: 1 | E21: 36 | F21: -108 | G21: 12 | H21: 20 | L21: 12 | W21: 36 | AH21: 20
A22: 16 | B22: 1 | C22: Jarred Irvan | D22: 1 | E22: 34 | F22: -110 | G22: 13 | H22: 15 | L22: 13 | W22: 34 | AH22: 15
A23: 17 | D23: 0 | E23: 0 | F23: -144 | H23: 0
A24: 18 | D24: 0 | E24: 0 | F24: -144 | H24: 0
A25: 19 | D25: 0 | E25: 0 | F25: -144 | H25: 0
A26: 20 | D26: =COUNTA(I26:R26) -> 0 | E26: =SUM(T26:AD26) -> 0 | F26: =E26-$E$7 -> -144 | G26: =AVERAGEA(I26:R26) ->  | H26: =SUM(AE26:AN26) -> 0
A27: 21
A28: =A27+1 -> 22
A29: 23
A30: 24
A31: 25
A32: 26
A33: 27
A34: 28
A35: 29
A36: 30
I37: =COUNTA(I7:I36) -> 11 | J37: 11 | K37: 12 | L37: 13 | M37: 0 | N37: 0 | O37: 0 | P37: 0 | Q37: 0 | R37: 0 | T37: =COUNTA(T7:T36) -> 9 | U37: 8 | V37: 11 | W37: =COUNTA(W7:W36) -> 11 | X37: 0 | Y37: 0 | Z37: 0 | AA37: 0 | AB37: 0 | AC37: 0 | AE37: =SUM(AE7:AE36) -> 875 | AF37: 875 | AG37: 895 | AH37: 910 | AI37: 0 | AJ37: 0 | AK37: 0 | AL37: 0 | AM37: 0 | AN37: 0
A38: Total Events | D38: 4
A39: Track Point Races | D39: 4 | X39: POLE WINNER POINTS IN BOLD
A40: Total Purse Payout | D40: =SUM(AE37:AN37) -> 3555
A41: Avg. Entries | D41: =SUM(I37:R37)/4 -> 11.75

Sheet Sheet1 (hidden)
